fUSD/lending_fUSD_20260219
["ID","MTS","AMOUNT","RATE_DAILY","PERIOD"]
[406004111,1771519872548,-500.0,0.00043835,120]
[406004112,1771519872557,-502.55082753,0.00043835,120]
[406004113,1771519872566,-506.62801535,0.00043835,120]
[406004114,1771519872575,-500.0,0.00043835,120]
[406004115,1771519872584,-505.94836423,0.00043835,120]
[406004116,1771519872594,-500.0,0.00043835,120]
[406004117,1771519872603,-500.0,0.00043835,120]
[406004118,1771519872612,-504.58641939,0.00043835,120]
[406004119,1771519872621,-503.32163152,0.00043835,120]
[406004120,1771519872631,-500.0,0.00043835,120]
[406004121,1771519872641,-506.50434956,0.00043835,120]
[406004122,1771519872650,-500.0,0.00043835,120]
[406004123,1771519872659,-504.09604419,0.00043835,120]
[406004124,1771519872669,-500.0,0.00043835,120]
[406004125,1771519872678,-528.3361682,0.00043835,120]
[406004126,1771519872687,-500.0,0.00043835,120]
[406004127,1771519872696,-504.87678723,0.00043835,120]
[406004128,1771519872706,-504.70012497,0.00043835,120]
[406004129,1771519872715,-505.23625695,0.00043835,120]
[406004130,1771519872724,-504.7187654,0.00043835,120]
[406004131,1771519872733,-500.0,0.00043835,120]
[406004132,1771519872742,-500.0,0.00043835,120]
[406004133,1771519872751,-500.0,0.00043835,120]
[406004134,1771519872761,-500.0,0.00043835,120]
[406004135,1771519872770,-195.712163,0.00043835,120]
[406004136,1771519872779,-156.21317,0.00043835,120]
[406004137,1771519872788,-510.67,0.00043835,120]
[406004138,1771519872797,-510.67,0.00043835,120]
[406004139,1771519872807,-510.67,0.00043835,120]
[406004140,1771519872816,-510.67,0.00043835,120]
[406004141,1771519872825,-510.67,0.00043835,120]
[406004142,1771519872835,-510.67,0.00043835,120]
[406004143,1771519872844,-510.67,0.00043835,120]
[406004144,1771519872853,-510.67,0.00043835,120]
[406004145,1771519872862,-510.67,0.00043835,120]
[406004146,1771519872871,-510.67,0.00043835,120]
[406004147,1771519872881,-510.67,0.00043835,120]
[406004148,1771519872995,-708.21,0.00043835,120]
[406004149,1771519873006,-708.21,0.00043835,120]
[406004150,1771519873015,-708.21,0.00043835,120]
[406004151,1771519873026,-708.21,0.00043835,120]
[406004152,1771519873038,-708.21,0.00043835,120]
[406004153,1771519873048,-708.21,0.00043835,120]
[406004154,1771519873058,-708.21,0.00043835,120]
[406004155,1771519873068,-708.21,0.00043835,120]
[406004156,1771519873078,-708.21,0.00043835,120]
[406004157,1771519873087,-708.21,0.00043835,120]
[406004158,1771519873096,-708.21,0.00043835,120]
[406004159,1771519873106,-708.21,0.00043835,120]
[406004160,1771519873117,-708.21,0.00043835,120]
[406004161,1771519873127,-708.21,0.00043835,120]
[406004162,1771519873137,-708.21,0.00043835,120]
[406004163,1771519873149,-708.21,0.00043835,120]
[406004164,1771519873158,-708.21,0.00043835,120]
[406004165,1771519873168,-708.21,0.00043835,120]
[406004166,1771519873178,-708.21,0.00043835,120]
[406004167,1771519873187,-708.21,0.00043835,120]
[406004168,1771519873196,-708.21,0.00043835,120]
[406004169,1771519873205,-708.21,0.00043835,120]
[406004170,1771519873214,-708.21,0.00043835,120]
[406004171,1771519873223,-708.33309691,0.00043835,120]
[406004172,1771519873234,-561.74,0.00043835,120]
[406004173,1771519873244,-561.74,0.00043835,120]
[406004174,1771519873254,-238.74,0.00043835,120]
[406004175,1771519873264,-2507.74,0.00043835,120]
[406004176,1771519873273,-2507.74,0.00043835,120]
[406004177,1771519873282,-2507.74,0.00043835,120]
[406004178,1771519873291,-2507.74,0.00043835,120]
[406004179,1771519873300,-2507.74,0.00043835,120]
[406004180,1771519873309,-2507.74,0.00043835,120]
[406004181,1771519873319,-2507.74,0.00043835,120]
[406004182,1771519873328,-2507.74,0.00043835,120]
[406004183,1771519873337,-2507.74,0.00043835,120]
[406004184,1771519873347,-2507.74,0.00043835,120]
[406004185,1771519873356,-2507.74,0.00043835,120]
[406004186,1771519873366,-2507.74,0.00043835,120]
[406004187,1771519873376,-2507.74,0.00043835,120]
[406004188,1771519873386,-2507.74,0.00043835,120]
[406004189,1771519873396,-2507.74,0.00043835,120]
[406004190,1771519873406,-2507.74,0.00043835,120]
[406004191,1771519873416,-2507.74,0.00043835,120]
[406004192,1771519873426,-2507.74,0.00043835,120]
[406004193,1771519873436,-2507.74,0.00043835,120]
[406004194,1771519873448,-2507.74,0.00043835,120]
[406004195,1771519873457,-2507.74,0.00043835,120]
[406004196,1771519873468,-2507.74,0.00043835,120]
[406004197,1771519873478,-2507.74,0.00043835,120]
[406004198,1771519873488,-2507.85837274,0.00043835,120]
[406004199,1771519873499,-283.57042716,0.00043835,2]
[406004200,1771519873510,-500.0,0.00043835,2]
[406004201,1771519873520,-500.0,0.00043835,2]
[406004202,1771519873529,-500.0,0.00043835,2]
[406004203,1771519873539,-500.0,0.00043835,2]
[406004204,1771519873549,-500.0,0.00043835,2]
[406004205,1771519873558,-500.0,0.00043835,2]
[406004206,1771519873568,-500.0,0.00043835,2]
[406004207,1771519873577,-500.0,0.00043835,2]
[406004208,1771519873587,-500.0,0.00043835,2]
[406004209,1771519873597,-500.0,0.00043835,2]
[406004210,1771519873606,-500.0,0.00043835,2]
[406004211,1771519873615,-500.0,0.00043835,2]
[406004212,1771519873625,-500.0,0.00043835,2]
[406004213,1771519873634,-500.0,0.00043835,2]
[406004214,1771519873644,-500.0,0.00043835,2]
[406004215,1771519873654,-326.80486273,0.00043835,2]
[406004216,1771519873663,-829.69448127,0.00043835,120]
[406004217,1771519873673,-500.0,0.00043835,120]
[406004218,1771519873683,-617.78095437,0.00043835,120]
[406004219,1771519873692,-512.82735597,0.00043835,120]
[406004220,1771519873701,-600.52261753,0.00043835,15]
[406004221,1771519873712,-3923.05,0.00043835,30]
[406004222,1771519873722,-3923.05,0.00043835,30]
[406004223,1771519873731,-3923.05,0.00043835,30]
[406004224,1771519873741,-3923.05,0.00043835,30]
[406004225,1771519873750,-3923.05,0.00043835,30]
[406004226,1771519873761,-3923.05,0.00043835,30]
[406004227,1771519873771,-3923.05,0.00043835,30]
[406004228,1771519873780,-3923.05,0.00043835,30]
[406004229,1771519873789,-3923.05,0.00043835,30]
[406004230,1771519873799,-3923.05,0.00043835,30]
[406004231,1771519873808,-3923.05,0.00043835,30]
[406004232,1771519873818,-3923.05,0.00043835,30]
[406004233,1771519873827,-3923.05,0.00043835,30]
[406004234,1771519873837,-3923.05,0.00043835,30]
[406004235,1771519873846,-3923.05,0.00043835,30]
[406004236,1771519873856,-3923.05,0.00043835,30]
[406004237,1771519873866,-3923.05,0.00043835,30]
[406004238,1771519873876,-3923.05,0.00043835,30]
[406004239,1771519873886,-3923.05,0.00043835,30]
[406004240,1771519873896,-3923.05,0.00043835,30]
[406004241,1771519873906,-3923.05,0.00043835,30]
[406004242,1771519873915,-3923.05,0.00043835,30]
[406004243,1771519873926,-3923.05,0.00043835,30]
[406004244,1771519873935,-3923.27404819,0.00043835,30]
[406004245,1771519873945,-500.0,0.00043835,120]
[406004246,1771519873954,-500.0,0.00043835,120]
[406004247,1771519873963,-578.28,0.00043835,120]
[406004248,1771519873973,-299.6641,0.00043835,120]
[406004249,1771519873982,-500.0,0.00043835,2]
[406004250,1771519873991,-500.0,0.00043835,2]
[406004251,1771519874001,-500.0,0.00043835,2]
[406004252,1771519874011,-500.0,0.00043835,2]
[406004253,1771519874020,-500.0,0.00043835,2]
[406004254,1771519874029,-500.0,0.00043835,2]
[406004255,1771519874042,-500.0,0.00043835,2]
[406004256,1771519874051,-500.0,0.00043835,2]
[406004257,1771519874061,-500.0,0.00043835,2]
[406004258,1771519874071,-500.0,0.00043835,2]
[406004259,1771519874082,-500.0,0.00043835,2]
[406004260,1771519874091,-500.0,0.00043835,2]
[406004261,1771519874101,-500.0,0.00043835,2]
[406004262,1771519874113,-500.0,0.00043835,2]
[406004263,1771519874122,-500.0,0.00043835,2]
[406004264,1771519874132,-500.0,0.00043835,2]
[406004265,1771519874142,-500.0,0.00043835,2]
[406004266,1771519874151,-500.0,0.00043835,2]
[406004267,1771519874160,-207.31018532,0.00043835,2]
[406004268,1771519874170,-425.66,0.00043835,2]
[406004269,1771519874180,-425.66,0.00043835,2]
[406004270,1771519874190,-425.66,0.00043835,2]
[406004271,1771519874199,-425.66,0.00043835,2]
[406004272,1771519874208,-500.0,0.00043835,2]
[406004273,1771519874218,-425.66,0.00043835,2]
[406004274,1771519874227,-500.0,0.00043835,2]
[406004275,1771519874237,-500.0,0.00043835,2]
[406004276,1771519874246,-425.66,0.00043835,2]
[406004277,1771519874256,-500.0,0.00043835,2]
[406004278,1771519874265,-425.66,0.00043835,2]
[406004279,1771519874275,-500.0,0.00043835,2]
[406004280,1771519874286,-500.0,0.00043835,2]
[406004281,1771519874295,-425.66,0.00043835,2]
[406004282,1771519874304,-425.66,0.00043835,2]
[406004283,1771519874315,-425.66,0.00043835,2]
[406004284,1771519874325,-425.66,0.00043835,2]
[406004285,1771519874335,-425.66,0.00043835,2]
[406004286,1771519874346,-425.66,0.00043835,2]
[406004287,1771519874355,-425.66,0.00043835,2]
[406004288,1771519874365,-425.66,0.00043835,2]
[406004289,1771519874375,-425.66,0.00043835,2]
[406004290,1771519874385,-425.66,0.00043835,2]
[406004291,1771519874396,-425.66,0.00043835,2]
[406004292,1771519874405,-425.66,0.00043835,2]
[406004293,1771519874417,-425.66,0.00043835,2]
[406004294,1771519874427,-425.66,0.00043835,2]
[406004295,1771519874437,-425.66,0.00043835,2]
[406004296,1771519874447,-425.66,0.00043835,2]
[406004297,1771519874458,-425.77678737,0.00043835,2]
[406004298,1771519874468,-300.0,0.00043835,2]
[406004299,1771519874479,-300.0,0.00043835,2]
[406004300,1771519874489,-300.0,0.00043835,2]
[406004301,1771519874499,-300.0,0.00043835,2]
[406004302,1771519874509,-300.0,0.00043835,2]
[406004303,1771519874519,-300.0,0.00043835,2]
[406004304,1771519874529,-300.0,0.00043835,2]
[406004305,1771519874538,-300.0,0.00043835,2]
[406004306,1771519874548,-300.0,0.00043835,2]
[406004307,1771519874557,-300.0,0.00043835,2]
[406004308,1771519874567,-300.0,0.00043835,2]
[406004309,1771519874576,-300.0,0.00043835,2]
[406004310,1771519874585,-300.0,0.00043835,2]
[406004311,1771519874595,-402.9009493,0.00043835,2]
[406004312,1771519874604,-500.0,0.00043835,7]
[406004313,1771519874613,-335.40077488,0.00043835,7]
[406004314,1771519874623,-400.0,0.00043835,120]
[406004315,1771519874632,-400.0,0.00043835,120]
[406004316,1771519874644,-163.68910113,0.00043835,120]
[406004317,1771519874654,-500.0,0.00043835,120]
[406004318,1771519874760,-500.0,0.00043835,120]
[406004319,1771519874770,-516.32278442,0.00043835,120]
[406004320,1771519874779,-1367.82,0.00043835,2]
[406004321,1771519874789,-1367.82,0.00043835,2]
[406004322,1771519874799,-1367.82,0.00043835,2]
[406004323,1771519874809,-1367.82,0.00043835,2]
[406004324,1771519874820,-1367.82,0.00043835,2]
[406004325,1771519874831,-1367.82,0.00043835,2]
[406004326,1771519874843,-1367.82,0.00043835,2]
[406004327,1771519874852,-1367.82,0.00043835,2]
[406004328,1771519874863,-1367.82,0.00043835,2]
[406004329,1771519874871,-1367.82,0.00043835,2]
[406004330,1771519874882,-1367.82,0.00043835,2]
[406004331,1771519874895,-1367.82,0.00043835,2]
[406004332,1771519874905,-1367.82,0.00043835,2]
[406004333,1771519874914,-1367.82,0.00043835,2]
[406004334,1771519874924,-1367.82,0.00043835,2]
[406004335,1771519874933,-1367.82,0.00043835,2]
[406004336,1771519874943,-1367.82,0.00043835,2]
[406004337,1771519874952,-1367.82,0.00043835,2]
[406004338,1771519874962,-1367.82,0.00043835,2]
[406004339,1771519874971,-1367.82,0.00043835,2]
[406004340,1771519874981,-1367.82,0.00043835,2]
[406004341,1771519874990,-1367.82,0.00043835,2]
[406004342,1771519875000,-1367.82,0.00043835,2]
[406004343,1771519875010,-1367.94748743,0.00043835,2]
[406004344,1771519875019,-617.32851942,0.00043835,2]
[406004345,1771519875028,-841.0,0.00043836,120]
[406004346,1771519875040,-342.107525,0.00043836,120]
[406004347,1771519875049,-342.107525,0.00043836,120]
[406004348,1771519875059,-342.107525,0.00043836,120]
[406004349,1771519875068,-342.107525,0.00043836,120]
[406004350,1771519875078,-342.107525,0.00043836,120]
[406004351,1771519875088,-342.107525,0.00043836,120]
[406004352,1771519875098,-342.107525,0.00043836,120]
[406004353,1771519875108,-342.107525,0.00043836,120]
[406004354,1771519875117,-342.107525,0.00043836,120]
[406004355,1771519875127,-342.107525,0.00043836,120]
[406004356,1771519875136,-342.107525,0.00043836,120]
[406004357,1771519875147,-342.107525,0.00043836,120]
[406004358,1771519875156,-342.107525,0.00043836,120]
[406004359,1771519875166,-342.107525,0.00043836,120]
[406004360,1771519875175,-342.107525,0.00043836,120]
[406004361,1771519875185,-342.107525,0.00043836,120]
[406004362,1771519875195,-342.107525,0.00043836,120]
[406004363,1771519875204,-342.107525,0.00043836,120]
[406004364,1771519875213,-342.107525,0.00043836,120]
[406004365,1771519875222,-342.107533,0.00043836,120]
[406004366,1771519875232,-1718.86,0.00043836,120]
[406004367,1771519875241,-1207.63,0.0004385,120]
[406004368,1771519875250,-3539.03614188,0.000439,2]
[406004369,1771519875260,-969.98832939,0.000439,2]
[406004370,1771519875271,-150.67,0.00043905,120]
[406004371,1771519875280,-1037.6,0.00043921,120]
[406004372,1771519875290,-101346.83255942,0.00043987,120]
[406004373,1771519875559,-10.32330757,0.00043987,120]
[406004374,1771519875570,-2098.13949838,0.0004399,120]
[406004375,1771519875579,-25064.45384608,0.0004399,120]
[406004376,1771519875591,-6260.77965526,0.0004399,120]
[406004377,1771519875602,-6890.0,0.0004399,120]
[406004378,1771519875614,-657.81814348,0.0004399,120]
[406004379,1771519875759,-575.6954453,0.00013963,2]
[406004380,1771519875799,-1877.3045547,0.00013963,2]
[406004381,1771519875810,-2453.0,0.00016963,2]
[406004382,1771519875820,-1409.70776305,0.00019963,2]
[406004383,1771519875832,-1043.29223695,0.00019963,2]
[406004384,1771519875841,-500.0,0.0002,2]
[406004385,1771519875850,-1575.40113802,0.00022963,2]
[406004386,1771519875866,-877.59886198,0.00022963,2]
[406004387,1771519875876,-150.0,0.00024658,2]
[406004388,1771519875885,-114.09062779,0.0002589,2]
[406004389,1771519875897,-35.90937221,0.0002589,2]
[406004390,1771519875906,-1522.58,0.00025963,2]
[406004391,1771519875916,-150.0,0.00027185,2]
[406004392,1771519875926,-150.0,0.00028544,2]
[406004393,1771519875935,-150.0,0.00029971,2]
[406004394,1771519875944,-7637.51062789,0.000329,14]
[406004509,1771521031894,-504.1163522,8.604e-05,2]
[406004510,1771521031905,-222.0,8.604e-05,2]
[406004511,1771521031916,-985.64713064,0.00010807,2]
[406004512,1771521031925,-809812.61561159,0.00010808,2]
[406004513,1771521031938,-58714.42611918,0.00010808,2]
[406004514,1771521031950,-105404.1317792,0.00010808,2]
[406004515,1771521031961,-176604.489465,0.00010808,2]
[406004516,1771521031975,-1254.41808677,0.00010808,2]
[406004517,1771521031986,-297.88473689,0.00010808,2]
[406004518,1771521032011,-697.0599875,0.00010808,2]
[406004519,1771521032025,-480.8498,0.00010808,2]
[406004520,1771521032038,-638.34053726,0.00010808,2]
[406004529,1771521037846,-930.398,0.00010808,2]
[406004530,1771521037859,-1104.41822772,0.00010808,2]
[406004531,1771521037950,-16317.37459625,0.00010808,2]
[406004532,1771521037961,-2448.8,0.00010808,2]
[406004533,1771521037972,-443851.76807698,0.00010808,2]
[406004534,1771521038111,-380.075,0.00010808,2]
[406004643,1771521039991,-6008.50315525,0.00010808,2]
[406004645,1771521040004,-102355.10637584,0.00010808,2]
[406004651,1771521040043,-483.11999975,0.00010808,2]
[406004669,1771521040202,-1658110.76144482,0.00010808,2]
[406004671,1771521040212,-300.0,0.00010907,2]
[406004673,1771521040222,-782.006,0.0001127,2]
[406004675,1771521040231,-1062.34374872,0.00011499,3]
[406004677,1771521040241,-1062.34374872,0.00011499,3]
[406004679,1771521040250,-1062.34374872,0.00011499,3]
[406004681,1771521040259,-1062.34374872,0.00011499,3]
[406004683,1771521040269,-795.62026181,0.00013093,2]
[406004685,1771521040279,-250.0,0.00015,2]
[406004687,1771521040288,-173.66088786,0.00015047,2]
[406004689,1771521040297,-300.0,0.00017,2]
[406004691,1771521040306,-517.0,0.00017,2]
[406004693,1771521040316,-258.7205315,0.00019,5]
[406004695,1771521040326,-166.66,0.00022689,30]
[406004698,1771521040336,-160.0,0.00023,2]
[406004699,1771521040345,-166.66,0.00023166,30]
[406004701,1771521040356,-166.66,0.00023644,30]
[406004704,1771521040368,-166.66,0.00024122,30]
[406004706,1771521040377,-166.66,0.00024599,30]
[406004708,1771521040387,-166.66,0.00025077,30]
[406004710,1771521040396,-517.0,0.00026,10]
[406004712,1771521040407,-3579.134617,0.00027,2]
[406004714,1771521040415,-150.0,0.00027369,2]
[406004716,1771521040425,-150.0,0.00027397,5]
[406004718,1771521040434,-985.64713063,0.00027641,2]
[406004720,1771521040448,-503.0,0.000277,2]
[406004722,1771521040457,-250.0,0.00027945,5]
[406004724,1771521040467,-350.0,0.00028493,5]
[406004726,1771521040476,-451.77192844,0.00029041,5]
[406004728,1771521040486,-150.0,0.00029223,2]
[406004730,1771521040496,-150.0,0.00029278,2]
[406004732,1771521040505,-150.0,0.00029333,2]
[406004734,1771521040515,-150.0,0.00029387,2]
[406004736,1771521040524,-150.0,0.00029442,2]
[406004738,1771521040534,-184.80031656,0.00029497,2]
[406004740,1771521040543,-25000.0,0.00029991,10]
[406004742,1771521040552,-5000.0,0.00030136,2]
[406004745,1771521040562,-1000.0,0.00031024,20]
[406004747,1771521040572,-1879.83702285,0.00031356,2]
[406004749,1771521040581,-300.0,0.00031849,10]
[406004751,1771521040592,-28963.0,0.0003185,20]
[406004753,1771521040601,-28963.0,0.000329,20]
[406004755,1771521040611,-870.6,0.000329,2]
[406004757,1771521040620,-560.817858,0.00033,14]
[406004759,1771521040630,-200.0,0.00033518,2]
[406004761,1771521040639,-217.20084535,0.000338,30]
[406004763,1771521040648,-28963.0,0.0003395,20]
[406004765,1771521040658,-2000.0,0.000345,2]
[406004767,1771521040667,-28963.0,0.00035,20]
[406004769,1771521040678,-517.0,0.00035,18]
[406004771,1771521040687,-312.0,0.00035625,120]
[406004773,1771521040696,-164.0,0.00035625,120]
[406004775,1771521040706,-1879.83702285,0.00035729,2]
[406004777,1771521040715,-782.006,0.00035953,43]
[406004779,1771521040724,-28963.0,0.0003605,20]
[406004781,1771521040734,-870.6,0.000367,2]
[406004783,1771521040743,-151.0,0.00037097,14]
[406004785,1771521040752,-28963.0,0.000371,20]
[406004787,1771521040762,-152.0,0.00037473,3]
[406004789,1771521040772,-28963.0,0.0003815,20]
[406004791,1771521040781,-2000.0,0.000382,2]
[406004793,1771521040791,-180.37897806,0.00038356,2]
[406004795,1771521040802,-1547.12527948,0.00040001,14]
[406004797,1771521040811,-1879.83702285,0.00040103,28]
[406004799,1771521040821,-1081.30003242,0.00040121,2]
[406004802,1771521040835,-300.0,0.00040121,2]
[406004804,1771521040845,-883.85715657,0.00040121,2]
[406004806,1771521040854,-307.0602376,0.00040121,2]
[406004808,1771521040864,-458.46094533,0.00040121,2]
[406004810,1771521040873,-300.0,0.00040121,2]
[406004812,1771521040883,-300.0,0.00040121,2]
[406004814,1771521040892,-300.0,0.00040121,2]
[406004816,1771521040901,-300.0,0.00040121,2]
[406004818,1771521040911,-518.20923752,0.00040121,2]
[406004820,1771521040921,-306.01661575,0.00040121,2]
[406004822,1771521040932,-300.0,0.00040121,2]
[406004824,1771521040942,-609.52608378,0.00040123,2]
[406004826,1771521040951,-829.56580145,0.00040123,2]
[406004828,1771521040960,-361.91504892,0.00040281,15]
[406004830,1771521040970,-736.0,0.00040451,30]
[406004832,1771521040979,-733.0,0.00040586,30]
[406004833,1771521040989,-630.27152635,0.00040658,120]
[406004834,1771521040998,-300.0,0.00041068,22]
[406004835,1771521041007,-841.0,0.00041096,120]
[406004836,1771521041017,-152.0,0.00041157,4]
[406004837,1771521041026,-487.0,0.00041157,2]
[406004838,1771521041035,-487.0,0.00041157,2]
[406004839,1771521041045,-487.0,0.00041157,2]
[406004840,1771521041054,-487.0,0.00041157,2]
[406004841,1771521041063,-487.0,0.00041157,2]
[406004842,1771521041079,-487.0,0.00041157,2]
[406004843,1771521041091,-487.0,0.00041157,2]
[406004844,1771521041102,-487.0,0.00041157,2]
[406004845,1771521041114,-583.91,0.00041157,2]
[406004846,1771521041128,-841.0,0.00041644,120]
[406004847,1771521041139,-870.6,0.000417,30]
[406004849,1771521041151,-4471.6747395,0.00041812,2]
[406004850,1771521041163,-5771.0498379,0.00041812,2]
[406004851,1771521041174,-2075.6989027,0.00041812,2]
[406004852,1771521041184,-2000.0,0.000419,2]
[406004853,1771521041195,-883.46655535,0.000419,2]
[406004854,1771521041208,-500.0,0.00042,120]
[406004855,1771521041221,-300.200059,0.00042086,101]
[406004856,1771521041233,-841.0,0.00042192,120]
[406004857,1771521041244,-500.0,0.000425,120]
[406004858,1771521041258,-272.73034255,0.00042583,2]
[406004859,1771521041268,-841.0,0.0004274,120]
[406004860,1771521041279,-160.0,0.00043,90]
[406004861,1771521041291,-500.0,0.00043,120]
[406004862,1771521041303,-200.0,0.0004311,120]
[406004863,1771521041314,-893.15,0.00043288,120]
[406004864,1771521041325,-500.0,0.000435,120]
[406004865,1771521041338,-200.0,0.0004355,120]
[406004866,1771521041349,-25000.0,0.00043817,15]
[406004867,1771521041363,-25000.0,0.00043826,15]
[406004868,1771521041374,-210.89932228,0.00043835,60]
[406004869,1771521041386,-210.89932228,0.00043835,60]
[406004870,1771521041397,-25000.0,0.00043835,15]
[406004871,1771521041408,-500.0,0.00043835,120]
[406004872,1771521041419,-500.0,0.00043835,120]
[406004873,1771521041431,-500.0,0.00043835,120]
[406004874,1771521041441,-500.0,0.00043835,120]
[406004875,1771521041452,-158.75336628,0.00043835,120]
[406004876,1771521041464,-246.35006987,0.00043835,2]
[406004877,1771521041475,-7752.30519444,0.00043835,15]
[406004878,1771521041487,-737.0,0.00043835,30]
[406004879,1771521041497,-1105.913,0.00043889,2]
[406004880,1771521041508,-16512.67027591,0.0004389,2]
[406004881,1771521041519,-160.39897394,0.0004389,13]
[406004882,1771521041530,-361.91504892,0.0004389,15]
[406004883,1771521041541,-387.4392902,0.0004389,120]
[406004884,1771521041552,-17139.84698592,0.0004389,20]
[406004885,1771521041563,-10000.0,0.000439,2]
[406004886,1771521041577,-180.1,0.00043963,120]
[406004887,1771521041587,-6628.0,0.00043973,120]
[406004888,1771521041598,-151.0,0.00043987,120]
[406004889,1771521041610,-250.0,0.00043989,120]
[406004890,1771521041621,-500.0,0.00043989,120]
[406004891,1771521041631,-250.0,0.00043989,120]
[406004892,1771521041642,-501.53923563,0.00043989,120]
[406004893,1771521041653,-500.0,0.00043989,120]
[406004894,1771521041665,-250.0,0.00043989,120]
[406004895,1771521041677,-500.0,0.00043989,120]
[406004896,1771521041687,-250.0,0.00043989,120]
[406004897,1771521041698,-500.0,0.00043989,120]
[406004898,1771521041709,-256.88247534,0.00043989,120]
[406004899,1771521041719,-500.0,0.00043989,120]
[406004900,1771521041730,-200.0,0.00043989,120]
[406004901,1771521041741,-500.0,0.00043989,120]
[406004902,1771521041752,-500.0,0.00043989,120]
[406004903,1771521041763,-500.0,0.00043989,120]
[406004904,1771521041774,-500.0,0.00043989,120]
[406004905,1771521041784,-300.54581124,0.00043989,120]
[406004906,1771521041794,-220.0,0.00043989,120]
[406004907,1771521041806,-500.0,0.00043989,120]
[406004908,1771521041816,-220.0,0.00043989,120]
[406004909,1771521041826,-500.0,0.00043989,120]
[406004910,1771521041840,-220.0,0.00043989,120]
[406004911,1771521041854,-500.0,0.00043989,120]
[406004912,1771521041866,-220.0,0.00043989,120]
[406004913,1771521041877,-500.0,0.00043989,120]
[406004914,1771521041889,-500.0,0.00043989,120]
[406004915,1771521041900,-500.0,0.00043989,120]
[406004916,1771521041911,-500.0,0.00043989,120]
[406004917,1771521041922,-500.0,0.00043989,120]
[406004918,1771521041934,-500.0,0.00043989,120]
[406004919,1771521041946,-250.0,0.00043989,120]
[406004920,1771521041955,-250.0,0.00043989,120]
[406004921,1771521041965,-250.0,0.00043989,120]
[406004922,1771521041975,-250.0,0.00043989,120]
[406004923,1771521041985,-250.0,0.00043989,120]
[406004924,1771521041995,-250.0,0.00043989,120]
[406004925,1771521042004,-250.0,0.00043989,120]
[406004926,1771521042015,-250.0,0.00043989,120]
[406004927,1771521042025,-250.0,0.00043989,120]
[406004928,1771521042036,-151.0,0.00043989,120]
[406004929,1771521042048,-1000.0,0.00043989,120]
[406004930,1771521042059,-1000.0,0.00043989,120]
[406004931,1771521042068,-156.587,0.00043989,120]
[406004932,1771521042078,-250.0,0.00043989,120]
[406004933,1771521042088,-1000.0,0.00043989,120]
[406004934,1771521042097,-935.07256378,0.00043989,120]
[406004935,1771521042107,-250.0,0.00043989,120]
[406004936,1771521042116,-162.380719,0.00043989,120]
[406004937,1771521042126,-1000.0,0.00043989,120]
[406004938,1771521042136,-279.79185827,0.00043989,120]
[406004939,1771521042147,-250.0,0.00043989,120]
[406004940,1771521042157,-168.3888056,0.00043989,120]
[406004941,1771521042167,-1000.0,0.00043989,120]
[406004942,1771521042179,-250.0,0.00043989,120]
[406004943,1771521042191,-1000.0,0.00043989,120]
[406004944,1771521042201,-174.61919141,0.00043989,120]
[406004945,1771521042212,-250.0,0.00043989,120]
[406004946,1771521042222,-160.41034689,0.00043989,120]
[406004947,1771521042233,-1000.0,0.00043989,120]